[Event "Early-Titled-Tuesday-Blitz-October-03-2023"]
[Site "Chess.com"]
[Date "2023.10.03"]
[Round "4"]
[White "N4700000"]
[Black "JohnWhite1952"]
[Result "1-0"]
[WhiteElo "2418"]
[BlackElo "2015"]
[TimeControl "180+1"]
[EndTime "8:40:17 PDT"]
[Termination "N4700000 won on time"]

1. e4 {[%clk 0:02:59.5]} 1... e6 {[%clk 0:02:59.9]} 2. d4 {[%clk 0:02:58.3]}
2... d5 {[%clk 0:03:00.8]} 3. Bd3 {[%clk 0:02:57.4]} 3... dxe4 {[%clk
0:02:58.4]} 4. Bxe4 {[%clk 0:02:57.9]} 4... Nf6 {[%clk 0:02:58.3]} 5. Bf3 {[%clk
0:02:58.3]} 5... Nc6 {[%clk 0:02:55.8]} 6. Ne2 {[%clk 0:02:55.3]} 6... Bd6
{[%clk 0:02:53]} 7. Nbc3 {[%clk 0:02:49.9]} 7... O-O {[%clk 0:02:52.4]} 8. O-O
{[%clk 0:02:49.3]} 8... e5 {[%clk 0:02:46.4]} 9. Bxc6 {[%clk 0:02:35.8]} 9...
bxc6 {[%clk 0:02:42.8]} 10. dxe5 {[%clk 0:02:35]} 10... Bxe5 {[%clk 0:02:42.1]}
11. Bf4 {[%clk 0:02:31.3]} 11... Qd6 {[%clk 0:02:32.8]} 12. Qxd6 {[%clk
0:02:21.9]} 12... cxd6 {[%clk 0:02:29.2]} 13. Bxe5 {[%clk 0:02:21.4]} 13... dxe5
{[%clk 0:02:29.2]} 14. Ng3 {[%clk 0:02:14.4]} 14... Ba6 {[%clk 0:02:23.2]} 15.
Rfe1 {[%clk 0:02:07.2]} 15... Rfe8 {[%clk 0:02:23]} 16. Rad1 {[%clk 0:02:05.9]}
16... Rab8 {[%clk 0:02:21.5]} 17. b3 {[%clk 0:02:05.1]} 17... Bb7 {[%clk
0:02:09.8]} 18. Nge4 {[%clk 0:01:57]} 18... Nxe4 {[%clk 0:01:55.8]} 19. Nxe4
{[%clk 0:01:57.9]} 19... f6 {[%clk 0:01:48.5]} 20. Nc5 {[%clk 0:01:55.6]} 20...
Bc8 {[%clk 0:01:43]} 21. Rd6 {[%clk 0:01:48.7]} 21... Bf5 {[%clk 0:01:38.9]} 22.
c4 {[%clk 0:01:45.7]} 22... Red8 {[%clk 0:01:27.3]} 23. Red1 {[%clk 0:01:44.6]}
23... Rxd6 {[%clk 0:01:23.3]} 24. Rxd6 {[%clk 0:01:45.5]} 24... Bb1 {[%clk
0:01:22.3]} 25. Rd1 {[%clk 0:01:21.3]} 25... Bf5 {[%clk 0:01:11.7]} 26. f3
{[%clk 0:01:15.6]} 26... Kf7 {[%clk 0:01:09.5]} 27. Rd6 {[%clk 0:01:14.7]} 27...
Rc8 {[%clk 0:01:00]} 28. Kf2 {[%clk 0:01:06.7]} 28... Ke7 {[%clk 0:00:59.3]} 29.
Rd2 {[%clk 0:01:06.5]} 29... Rd8 {[%clk 0:00:52.8]} 30. Rxd8 {[%clk 0:01:02.3]}
30... Kxd8 {[%clk 0:00:53.3]} 31. Ke3 {[%clk 0:01:02.2]} 31... Ke7 {[%clk
0:00:51.3]} 32. b4 {[%clk 0:00:57]} 32... Bb1 {[%clk 0:00:48.2]} 33. a4 {[%clk
0:00:55.5]} 33... f5 {[%clk 0:00:39.2]} 34. f4 {[%clk 0:00:53.6]} 34... Kd6
{[%clk 0:00:32.6]} 35. a5 {[%clk 0:00:52.4]} 35... Ba2 {[%clk 0:00:30]} 36.
fxe5+ {[%clk 0:00:49.7]} 36... Kxe5 {[%clk 0:00:28.7]} 37. Nd3+ {[%clk 0:00:50]}
37... Kd6 {[%clk 0:00:25.7]} 38. Kd4 {[%clk 0:00:50.4]} 38... Bb1 {[%clk
0:00:21.9]} 39. Ne5 {[%clk 0:00:42.7]} 39... a6 {[%clk 0:00:18.4]} 40. Nf7+
{[%clk 0:00:32.8]} 40... Ke7 {[%clk 0:00:15.3]} 41. Ng5 {[%clk 0:00:31.5]} 41...
h6 {[%clk 0:00:14.5]} 42. Nf3 {[%clk 0:00:30.3]} 42... Be4 {[%clk 0:00:12.2]}
43. Kc5 {[%clk 0:00:22.9]} 43... g5 {[%clk 0:00:01.8]} 44. Nd4 {[%clk
0:00:20.3]} 44... Bxg2 {[%clk 0:00:01.5]} 45. Nxf5+ {[%clk 0:00:20]} 45... Kf6
{[%clk 0:00:01.6]} 46. Nxh6 {[%clk 0:00:20.1]} 1-0

[Event "Early-Titled-Tuesday-Blitz-October-03-2023"]
[Site "Chess.com"]
[Date "2023.10.03"]
[Round "4"]
[White "Javylavilla"]
[Black "SRob2003"]
[Result "0-1"]
[WhiteElo "2370"]
[BlackElo "2616"]
[TimeControl "180+1"]
[EndTime "8:40:18 PDT"]
[Termination "SRob2003 won on time"]

1. e4 {[%clk 0:03:00.9]} 1... c6 {[%clk 0:02:37.9]} 2. c4 {[%clk 0:02:58.5]}
2... d5 {[%clk 0:02:38.8]} 3. cxd5 {[%clk 0:02:59]} 3... cxd5 {[%clk 0:02:39.7]}
4. exd5 {[%clk 0:02:59.3]} 4... Nf6 {[%clk 0:02:26.1]} 5. Qa4+ {[%clk
0:02:58.1]} 5... Nbd7 {[%clk 0:02:25.9]} 6. Nc3 {[%clk 0:02:56.9]} 6... g6
{[%clk 0:02:25.9]} 7. Nf3 {[%clk 0:02:56.7]} 7... a6 {[%clk 0:02:26.3]} 8. Qb3
{[%clk 0:02:51]} 8... Bg7 {[%clk 0:02:26.1]} 9. d6 {[%clk 0:02:50.3]} 9... e6
{[%clk 0:02:23]} 10. d4 {[%clk 0:02:49.8]} 10... O-O {[%clk 0:02:22.8]} 11. Be2
{[%clk 0:02:49.7]} 11... b6 {[%clk 0:02:09.3]} 12. O-O {[%clk 0:02:46.6]} 12...
Bb7 {[%clk 0:02:09.6]} 13. Bf4 {[%clk 0:02:46.6]} 13... Nd5 {[%clk 0:02:04.2]}
14. Be5 {[%clk 0:02:46]} 14... Nxe5 {[%clk 0:01:20.6]} 15. dxe5 {[%clk
0:02:45.4]} 15... Nf4 {[%clk 0:01:21.3]} 16. Bd1 {[%clk 0:02:28.4]} 16... Nd3
{[%clk 0:01:12.4]} 17. Na4 {[%clk 0:01:59.4]} 17... Nxe5 {[%clk 0:00:56.9]} 18.
Nxe5 {[%clk 0:01:36]} 18... Bxe5 {[%clk 0:00:57.8]} 19. Qxb6 {[%clk 0:01:36]}
19... Rb8 {[%clk 0:00:50.8]} 20. Qe3 {[%clk 0:01:20.5]} 20... Qxd6 {[%clk
0:00:49.7]} 21. h3 {[%clk 0:01:02.3]} 21... Bd4 {[%clk 0:00:47.2]} 22. Qg5
{[%clk 0:00:51.5]} 22... f6 {[%clk 0:00:30.4]} 23. Qg4 {[%clk 0:00:50.6]} 23...
f5 {[%clk 0:00:28.2]} 24. Qg5 {[%clk 0:00:50.3]} 24... f4 {[%clk 0:00:27]} 25.
Bb3 {[%clk 0:00:34.5]} 25... Rf5 {[%clk 0:00:24.7]} 26. Qg4 {[%clk 0:00:32.1]}
26... Kg7 {[%clk 0:00:25.1]} 27. Rad1 {[%clk 0:00:26.9]} 27... h5 {[%clk
0:00:23.1]} 28. Qh4 {[%clk 0:00:20.4]} 28... Kh6 {[%clk 0:00:13.4]} 29. Kh2
{[%clk 0:00:16.8]} 29... Rg5 {[%clk 0:00:12.2]} 30. f3 {[%clk 0:00:16.1]} 30...
e5 {[%clk 0:00:08.1]} 31. Rfe1 {[%clk 0:00:12.2]} 31... Qf6 {[%clk 0:00:08.3]}
32. Rxd4 {[%clk 0:00:10.3]} 32... exd4 {[%clk 0:00:09.2]} 33. Re6 {[%clk
0:00:10.5]} 33... Rxg2+ {[%clk 0:00:09]} 34. Kxg2 {[%clk 0:00:08.3]} 34... Qxh4
{[%clk 0:00:09.9]} 35. Bc2 {[%clk 0:00:07.9]} 35... Qg3+ {[%clk 0:00:07.5]} 36.
Kf1 {[%clk 0:00:08.2]} 36... Qxf3+ {[%clk 0:00:08]} 37. Ke1 {[%clk 0:00:08.7]}
37... Qg3+ {[%clk 0:00:08.3]} 38. Kd2 {[%clk 0:00:08.4]} 38... Rg8 {[%clk
0:00:03.9]} 39. Nc5 {[%clk 0:00:07.9]} 39... d3 {[%clk 0:00:03.3]} 40. Nxd3
{[%clk 0:00:07.5]} 40... Qh2+ {[%clk 0:00:02.8]} 41. Kc1 {[%clk 0:00:06.7]}
41... Qxh3 {[%clk 0:00:03.7]} 42. Nc5 {[%clk 0:00:05.6]} 42... Bd5 {[%clk
0:00:02.4]} 43. Re7 {[%clk 0:00:05.5]} 43... Qh1+ {[%clk 0:00:02.3]} 44. Kd2
{[%clk 0:00:05.2]} 44... Qh2+ {[%clk 0:00:03.2]} 45. Kc3 {[%clk 0:00:04.9]}
45... f3 {[%clk 0:00:03.8]} 46. Nd7 {[%clk 0:00:02.5]} 46... f2 {[%clk
0:00:03.1]} 47. Nf6 {[%clk 0:00:02.6]} 47... f1=Q {[%clk 0:00:03.1]} 0-1

[Event "Early-Titled-Tuesday-Blitz-October-03-2023"]
[Site "Chess.com"]
[Date "2023.10.03"]
[Round "4"]
[White "Jojo_898"]
[Black "Maxfan2008"]
[Result "0-1"]
[WhiteElo "2375"]
[BlackElo "2581"]
[TimeControl "180+1"]
[EndTime "8:40:18 PDT"]
[Termination "Maxfan2008 won on time"]

1. e4 {[%clk 0:03:00.9]} 1... c5 {[%clk 0:02:57]} 2. Nf3 {[%clk 0:03:00.2]} 2...
d6 {[%clk 0:02:56.4]} 3. c3 {[%clk 0:02:58.8]} 3... Nf6 {[%clk 0:02:55.8]} 4.
Bd3 {[%clk 0:02:59]} 4... Nc6 {[%clk 0:02:54]} 5. h3 {[%clk 0:02:56.8]} 5... g6
{[%clk 0:02:51.3]} 6. O-O {[%clk 0:02:57]} 6... Bg7 {[%clk 0:02:51.2]} 7. Bc2
{[%clk 0:02:56.8]} 7... O-O {[%clk 0:02:48.7]} 8. d4 {[%clk 0:02:57.5]} 8... d5
{[%clk 0:02:41.4]} 9. e5 {[%clk 0:02:50.4]} 9... Ne4 {[%clk 0:02:39.2]} 10. Nbd2
{[%clk 0:02:48.2]} 10... Nxd2 {[%clk 0:02:37.3]} 11. Bxd2 {[%clk 0:02:48.2]}
11... Qb6 {[%clk 0:02:32]} 12. dxc5 {[%clk 0:02:13]} 12... Qxb2 {[%clk
0:02:26.6]} 13. Bb3 {[%clk 0:02:10.7]} 13... Be6 {[%clk 0:02:18.5]} 14. a4
{[%clk 0:01:29.8]} 14... Na5 {[%clk 0:01:59.1]} 15. Bc2 {[%clk 0:01:29.4]} 15...
Nc4 {[%clk 0:01:50]} 16. Bb3 {[%clk 0:01:06]} 16... Nxd2 {[%clk 0:01:46.1]} 17.
Nxd2 {[%clk 0:01:04.2]} 17... Qxc3 {[%clk 0:01:45.4]} 18. f4 {[%clk 0:00:53.2]}
18... Qxc5+ {[%clk 0:01:42.4]} 19. Kh2 {[%clk 0:00:53.8]} 19... f6 {[%clk
0:01:29.5]} 20. Rc1 {[%clk 0:00:49.1]} 20... Qb4 {[%clk 0:01:18.9]} 21. Rb1
{[%clk 0:00:47.5]} 21... Qa5 {[%clk 0:01:08.7]} 22. Nf3 {[%clk 0:00:44.9]} 22...
Rad8 {[%clk 0:01:02.7]} 23. Qe2 {[%clk 0:00:41.1]} 23... Bf5 {[%clk 0:00:59.5]}
24. Rbd1 {[%clk 0:00:37.5]} 24... Be4 {[%clk 0:00:58.5]} 25. Qxe4 {[%clk
0:00:32.5]} 25... e6 {[%clk 0:00:56.5]} 26. Qe3 {[%clk 0:00:30.2]} 26... Qb4
{[%clk 0:00:50.8]} 27. exf6 {[%clk 0:00:29.7]} 27... Rxf6 {[%clk 0:00:50.3]} 28.
Ng5 {[%clk 0:00:23.4]} 28... Qe7 {[%clk 0:00:22.9]} 29. Rxd5 {[%clk 0:00:18.2]}
29... Rdf8 {[%clk 0:00:11.9]} 30. Rb5 {[%clk 0:00:14.8]} 30... Kh8 {[%clk
0:00:11]} 31. Nxe6 {[%clk 0:00:14.7]} 31... Re8 {[%clk 0:00:10.1]} 32. Re1
{[%clk 0:00:14.1]} 32... Qd6 {[%clk 0:00:09.9]} 33. Re5 {[%clk 0:00:13.7]} 33...
Bh6 {[%clk 0:00:09.6]} 34. g3 {[%clk 0:00:10.5]} 34... Rc8 {[%clk 0:00:07.5]}
35. Qxa7 {[%clk 0:00:09]} 35... Qd3 {[%clk 0:00:06.7]} 36. Qe3 {[%clk
0:00:07.7]} 36... Qd6 {[%clk 0:00:04.5]} 37. Re2 {[%clk 0:00:07.7]} 37... Qb4
{[%clk 0:00:03]} 38. Nd4 {[%clk 0:00:07.4]} 38... Qa3 {[%clk 0:00:02.2]} 39.
Re8+ {[%clk 0:00:07.1]} 39... Rxe8 {[%clk 0:00:02.3]} 40. Qxe8+ {[%clk
0:00:07.7]} 40... Rf8 {[%clk 0:00:03]} 41. Qe5+ {[%clk 0:00:05.7]} 41... Bg7
{[%clk 0:00:03.1]} 42. Qe3 {[%clk 0:00:04.8]} 42... Qb4 {[%clk 0:00:02.6]} 43.
Ne6 {[%clk 0:00:05.3]} 43... Re8 {[%clk 0:00:02.1]} 44. Qf3 {[%clk 0:00:04.4]}
44... Bf6 {[%clk 0:00:02]} 45. Bd5 {[%clk 0:00:02.2]} 45... Rc8 {[%clk
0:00:02.4]} 0-1

[Event "Early-Titled-Tuesday-Blitz-October-03-2023"]
[Site "Chess.com"]
[Date "2023.10.03"]
[Round "4"]
[White "IngOscarArdila"]
[Black "betta2004"]
[Result "1/2-1/2"]
[WhiteElo "2333"]
[BlackElo "2548"]
[TimeControl "180+1"]
[EndTime "8:40:19 PDT"]
[Termination "Game drawn - insufficient material"]

1. d4 {[%clk 0:03:00.2]} 1... Nf6 {[%clk 0:02:57.6]} 2. c4 {[%clk 0:03:00.4]}
2... e6 {[%clk 0:02:57.3]} 3. Nc3 {[%clk 0:03:00.3]} 3... c5 {[%clk 0:02:57.7]}
4. Nf3 {[%clk 0:02:59.7]} 4... cxd4 {[%clk 0:02:57.6]} 5. Nxd4 {[%clk
0:02:59.9]} 5... Nc6 {[%clk 0:02:58.5]} 6. Bg5 {[%clk 0:02:53.7]} 6... Qa5
{[%clk 0:02:56.3]} 7. Bxf6 {[%clk 0:02:51.2]} 7... gxf6 {[%clk 0:02:55.4]} 8.
Nb5 {[%clk 0:02:44]} 8... a6 {[%clk 0:02:48.2]} 9. Nd6+ {[%clk 0:02:40.1]} 9...
Bxd6 {[%clk 0:02:46.8]} 10. Qxd6 {[%clk 0:02:40.1]} 10... Qe5 {[%clk 0:02:43.4]}
11. O-O-O {[%clk 0:02:33.1]} 11... Qxd6 {[%clk 0:02:34.1]} 12. Rxd6 {[%clk
0:02:34]} 12... Ke7 {[%clk 0:02:34.4]} 13. Rd2 {[%clk 0:02:32.6]} 13... f5
{[%clk 0:02:25.1]} 14. e3 {[%clk 0:02:31.8]} 14... d6 {[%clk 0:02:25.4]} 15. f4
{[%clk 0:02:25.9]} 15... Rg8 {[%clk 0:02:25.2]} 16. g3 {[%clk 0:02:25.8]} 16...
Bd7 {[%clk 0:02:14.6]} 17. Bg2 {[%clk 0:02:25.3]} 17... Rad8 {[%clk 0:02:15]}
18. Rhd1 {[%clk 0:02:24.1]} 18... Bc8 {[%clk 0:02:14.5]} 19. Bf3 {[%clk
0:02:21.7]} 19... Na5 {[%clk 0:02:02.7]} 20. b3 {[%clk 0:02:17.7]} 20... b6
{[%clk 0:02:03]} 21. Na4 {[%clk 0:02:13.2]} 21... b5 {[%clk 0:02:01.8]} 22. cxb5
{[%clk 0:01:58.1]} 22... axb5 {[%clk 0:02:02.7]} 23. Nc3 {[%clk 0:01:52.5]}
23... b4 {[%clk 0:01:58.9]} 24. Nb5 {[%clk 0:01:47.8]} 24... Bb7 {[%clk
0:01:59.1]} 25. Bxb7 {[%clk 0:01:42.5]} 25... Nxb7 {[%clk 0:02:00]} 26. Kb2
{[%clk 0:01:33.6]} 26... d5 {[%clk 0:01:49.9]} 27. Rc2 {[%clk 0:01:28.3]} 27...
Rc8 {[%clk 0:01:48.3]} 28. Rdc1 {[%clk 0:01:28.6]} 28... Kd7 {[%clk 0:01:44]}
29. Nd4 {[%clk 0:01:21.7]} 29... Nd6 {[%clk 0:01:40.8]} 30. Nc6 {[%clk
0:01:13.7]} 30... Nc4+ {[%clk 0:01:32.9]} 31. bxc4 {[%clk 0:01:12.9]} 31... Rxc6
{[%clk 0:01:33]} 32. cxd5 {[%clk 0:01:11.7]} 32... Rxc2+ {[%clk 0:01:33.5]} 33.
Rxc2 {[%clk 0:01:10.7]} 33... exd5 {[%clk 0:01:34.4]} 34. Kb3 {[%clk 0:01:10.9]}
34... Re8 {[%clk 0:01:33.4]} 35. Kxb4 {[%clk 0:01:07.4]} 35... Rxe3 {[%clk
0:01:32.1]} 36. Kc5 {[%clk 0:01:07.8]} 36... Ke6 {[%clk 0:01:29.1]} 37. a4
{[%clk 0:00:56.4]} 37... Ra3 {[%clk 0:01:28.6]} 38. Re2+ {[%clk 0:00:54.3]}
38... Kd7 {[%clk 0:01:28.5]} 39. Kb5 {[%clk 0:00:45.6]} 39... Kd6 {[%clk
0:01:25.8]} 40. Re5 {[%clk 0:00:26.2]} 40... d4 {[%clk 0:01:25.5]} 41. Kb4
{[%clk 0:00:22.4]} 41... Ra1 {[%clk 0:01:22.9]} 42. Rxf5 {[%clk 0:00:20.9]}
42... d3 {[%clk 0:01:23.3]} 43. Kc3 {[%clk 0:00:21.1]} 43... Ra3+ {[%clk
0:01:23.3]} 44. Kd2 {[%clk 0:00:21.2]} 44... Ke6 {[%clk 0:01:18.4]} 45. Re5+
{[%clk 0:00:20.8]} 45... Kd6 {[%clk 0:01:18.2]} 46. a5 {[%clk 0:00:21]} 46... f6
{[%clk 0:01:17.9]} 47. Rh5 {[%clk 0:00:18.7]} 47... Ke6 {[%clk 0:01:16]} 48. a6
{[%clk 0:00:17]} 48... Rxa6 {[%clk 0:01:14.1]} 49. Kxd3 {[%clk 0:00:16.8]} 49...
Ra7 {[%clk 0:01:14.9]} 50. Rh6 {[%clk 0:00:15.9]} 50... Kf5 {[%clk 0:01:15]} 51.
h3 {[%clk 0:00:15]} 51... Ra3+ {[%clk 0:01:14.5]} 52. Ke2 {[%clk 0:00:14.6]}
52... Rxg3 {[%clk 0:01:15.1]} 53. Rxh7 {[%clk 0:00:14.9]} 53... Kxf4 {[%clk
0:01:15.1]} 54. Kf2 {[%clk 0:00:15.4]} 54... Ra3 {[%clk 0:01:14.9]} 55. h4
{[%clk 0:00:14.4]} 55... Ra2+ {[%clk 0:01:14.9]} 56. Kg1 {[%clk 0:00:14.9]}
56... f5 {[%clk 0:01:09.9]} 57. h5 {[%clk 0:00:14.3]} 57... Kf3 {[%clk
0:01:10.3]} 58. h6 {[%clk 0:00:12.7]} 58... Ra1+ {[%clk 0:01:10.8]} 59. Kh2
{[%clk 0:00:13]} 59... Ra4 {[%clk 0:01:10.7]} 60. Kh3 {[%clk 0:00:12.4]} 60...
Ra1 {[%clk 0:01:08.1]} 61. Kh4 {[%clk 0:00:12.8]} 61... Kf4 {[%clk 0:01:03.6]}
62. Kh5 {[%clk 0:00:12.3]} 62... Rh1+ {[%clk 0:00:52.8]} 63. Kg6 {[%clk
0:00:12.5]} 63... Kg4 {[%clk 0:00:51.5]} 64. Ra7 {[%clk 0:00:10.2]} 64... f4
{[%clk 0:00:51.5]} 65. h7 {[%clk 0:00:10.5]} 65... f3 {[%clk 0:00:52]} 66. Rf7
{[%clk 0:00:10.2]} 66... Kg3 {[%clk 0:00:52.1]} 67. Kg7 {[%clk 0:00:10.4]} 67...
f2 {[%clk 0:00:51.6]} 68. h8=Q {[%clk 0:00:10.4]} 68... Rxh8 {[%clk 0:00:52.5]}
69. Kxh8 {[%clk 0:00:10.8]} 69... Kg2 {[%clk 0:00:53.1]} 70. Rg7+ {[%clk
0:00:10.8]} 70... Kh1 {[%clk 0:00:52.7]} 71. Rh7+ {[%clk 0:00:10.3]} 71... Kg1
{[%clk 0:00:53]} 72. Rg7+ {[%clk 0:00:10.4]} 72... Kh1 {[%clk 0:00:53.6]} 73.
Rf7 {[%clk 0:00:09.9]} 73... Kg1 {[%clk 0:00:53.8]} 74. Kg7 {[%clk 0:00:10.2]}
74... f1=Q {[%clk 0:00:53.8]} 75. Rxf1+ {[%clk 0:00:10.3]} 75... Kxf1 {[%clk
0:00:54.7]} 1/2-1/2

[Event "Early-Titled-Tuesday-Blitz-October-03-2023"]
[Site "Chess.com"]
[Date "2023.10.03"]
[Round "4"]
[White "elamier"]
[Black "CSB7"]
[Result "0-1"]
[WhiteElo "2404"]
[BlackElo "2733"]
[TimeControl "180+1"]
[EndTime "8:40:21 PDT"]
[Termination "CSB7 won by resignation"]

1. d4 {[%clk 0:02:49.3]} 1... Nf6 {[%clk 0:02:59.2]} 2. c4 {[%clk 0:02:43.7]}
2... a6 {[%clk 0:02:58.9]} 3. Nf3 {[%clk 0:02:30.6]} 3... e6 {[%clk 0:02:54.9]}
4. Nc3 {[%clk 0:02:26.4]} 4... d5 {[%clk 0:02:54.5]} 5. cxd5 {[%clk 0:02:18.8]}
5... exd5 {[%clk 0:02:55.4]} 6. Bg5 {[%clk 0:02:18.9]} 6... Be6 {[%clk
0:02:55.6]} 7. e3 {[%clk 0:02:18.2]} 7... Nbd7 {[%clk 0:02:55.3]} 8. Bd3 {[%clk
0:02:17.9]} 8... h6 {[%clk 0:02:55]} 9. Bh4 {[%clk 0:02:17.6]} 9... g5 {[%clk
0:02:54.1]} 10. Bg3 {[%clk 0:02:17.3]} 10... Nh5 {[%clk 0:02:54.5]} 11. Qc2
{[%clk 0:02:08]} 11... Nxg3 {[%clk 0:02:38.4]} 12. hxg3 {[%clk 0:02:07.9]} 12...
Bg7 {[%clk 0:02:37.8]} 13. Bf5 {[%clk 0:01:45.6]} 13... Qf6 {[%clk 0:02:31]} 14.
Bxe6 {[%clk 0:01:32.5]} 14... fxe6 {[%clk 0:02:31.9]} 15. g4 {[%clk 0:01:21.1]}
15... O-O-O {[%clk 0:02:29.4]} 16. O-O-O {[%clk 0:01:19.9]} 16... Kb8 {[%clk
0:02:26.1]} 17. Ne2 {[%clk 0:01:19.3]} 17... c5 {[%clk 0:02:07.6]} 18. Kb1
{[%clk 0:01:09.4]} 18... Rc8 {[%clk 0:02:06.4]} 19. Qd2 {[%clk 0:00:55.1]} 19...
Rc6 {[%clk 0:01:53.5]} 20. Ng3 {[%clk 0:00:54.3]} 20... Rhc8 {[%clk 0:01:46.9]}
21. Nh5 {[%clk 0:00:53.1]} 21... Qg6+ {[%clk 0:01:37.7]} 22. Qd3 {[%clk
0:00:48.1]} 22... Qxd3+ {[%clk 0:01:37.8]} 23. Rxd3 {[%clk 0:00:48]} 23... c4
{[%clk 0:01:28.2]} 24. Rdd1 {[%clk 0:00:40.7]} 24... Bf8 {[%clk 0:01:27.1]} 25.
Rhe1 {[%clk 0:00:36.9]} 25... b5 {[%clk 0:01:23.6]} 26. e4 {[%clk 0:00:35.6]}
26... c3 {[%clk 0:00:54.9]} 27. Rc1 {[%clk 0:00:26.2]} 27... cxb2 {[%clk
0:00:40.6]} 28. Rxc6 {[%clk 0:00:23.6]} 28... Rxc6 {[%clk 0:00:40.4]} 29. Kxb2
{[%clk 0:00:24]} 29... Bb4 {[%clk 0:00:34.7]} 30. Re3 {[%clk 0:00:21]} 30... Nb6
{[%clk 0:00:34]} 31. Ne5 {[%clk 0:00:21.7]} 31... Rc7 {[%clk 0:00:27.3]} 32. Nf6
{[%clk 0:00:16.8]} 32... Bd6 {[%clk 0:00:22.9]} 33. exd5 {[%clk 0:00:15.1]}
33... exd5 {[%clk 0:00:17.5]} 34. Kb3 {[%clk 0:00:12.5]} 34... a5 {[%clk
0:00:13.1]} 35. Ne8 {[%clk 0:00:12.4]} 35... a4+ {[%clk 0:00:12.2]} 36. Kb2
{[%clk 0:00:12.8]} 36... Bxe5 {[%clk 0:00:12.7]} 37. Rxe5 {[%clk 0:00:07.3]}
37... Nc4+ {[%clk 0:00:12.5]} 38. Kb1 {[%clk 0:00:08.1]} 38... Nxe5 {[%clk
0:00:10.5]} 39. Nxc7 {[%clk 0:00:08.8]} 39... Kxc7 {[%clk 0:00:10.2]} 40. dxe5
{[%clk 0:00:08.4]} 40... b4 {[%clk 0:00:10]} 41. g3 {[%clk 0:00:05.4]} 41... Kd7
{[%clk 0:00:10.2]} 42. f4 {[%clk 0:00:05.9]} 42... Ke6 {[%clk 0:00:10]} 43. Kc2
{[%clk 0:00:04.9]} 43... d4 {[%clk 0:00:10]} 44. Kb2 {[%clk 0:00:04.4]} 44...
Kd5 {[%clk 0:00:09]} 45. Kc2 {[%clk 0:00:04.7]} 45... Ke6 {[%clk 0:00:09.1]} 46.
Kb2 {[%clk 0:00:05.1]} 46... d3 {[%clk 0:00:05.7]} 47. Kc1 {[%clk 0:00:05.3]}
47... b3 {[%clk 0:00:05.9]} 48. axb3 {[%clk 0:00:05.6]} 48... axb3 {[%clk
0:00:06.8]} 49. Kd1 {[%clk 0:00:01.3]} 49... b2 {[%clk 0:00:05.2]} 0-1

[Event "Early-Titled-Tuesday-Blitz-October-03-2023"]
[Site "Chess.com"]
[Date "2023.10.03"]
[Round "4"]
[White "SAInt_666"]
[Black "Shuvalov"]
[Result "0-1"]
[WhiteElo "2649"]
[BlackElo "2466"]
[TimeControl "180+1"]
[EndTime "8:40:22 PDT"]
[Termination "Shuvalov won by resignation"]

1. d4 {[%clk 0:03:00.9]} 1... Nf6 {[%clk 0:02:55.9]} 2. Bf4 {[%clk 0:03:01.5]}
2... d5 {[%clk 0:02:55.5]} 3. e3 {[%clk 0:03:02]} 3... e6 {[%clk 0:02:56]} 4.
Nf3 {[%clk 0:03:01.6]} 4... c5 {[%clk 0:02:56.4]} 5. Nbd2 {[%clk 0:03:00.5]}
5... Nc6 {[%clk 0:02:56.5]} 6. Bb5 {[%clk 0:02:59.8]} 6... Bd6 {[%clk
0:02:54.4]} 7. Bg3 {[%clk 0:02:58.4]} 7... O-O {[%clk 0:02:53.9]} 8. O-O {[%clk
0:02:56]} 8... Ne7 {[%clk 0:02:53.7]} 9. c4 {[%clk 0:02:53.3]} 9... a6 {[%clk
0:02:51.4]} 10. Ba4 {[%clk 0:02:52.8]} 10... dxc4 {[%clk 0:02:50.9]} 11. Bxd6
{[%clk 0:02:52.3]} 11... Qxd6 {[%clk 0:02:50.4]} 12. Nxc4 {[%clk 0:02:52.9]}
12... Qc7 {[%clk 0:02:49]} 13. Nce5 {[%clk 0:02:47.2]} 13... b5 {[%clk
0:02:45.4]} 14. Bc2 {[%clk 0:02:45]} 14... Bb7 {[%clk 0:02:44.4]} 15. Rc1 {[%clk
0:02:44.3]} 15... Rad8 {[%clk 0:02:35.3]} 16. Bb1 {[%clk 0:02:42.1]} 16... c4
{[%clk 0:02:32.5]} 17. Qe2 {[%clk 0:02:30.9]} 17... Qa5 {[%clk 0:02:19.4]} 18.
b3 {[%clk 0:02:28.2]} 18... c3 {[%clk 0:02:13.7]} 19. Ne1 {[%clk 0:02:13.8]}
19... b4 {[%clk 0:02:11.6]} 20. N1d3 {[%clk 0:02:10.7]} 20... Qb6 {[%clk
0:02:05]} 21. Nc4 {[%clk 0:02:07.2]} 21... Qb5 {[%clk 0:02:00.7]} 22. Nc5 {[%clk
0:01:52.4]} 22... Bc6 {[%clk 0:01:42.7]} 23. Bd3 {[%clk 0:01:49.4]} 23... a5
{[%clk 0:01:31.5]} 24. a4 {[%clk 0:01:43.6]} 24... Qb8 {[%clk 0:01:21.5]} 25.
Nxa5 {[%clk 0:01:40.4]} 25... Bxg2 {[%clk 0:01:17.3]} 26. Kxg2 {[%clk 0:01:35]}
26... Qa8+ {[%clk 0:01:17.4]} 27. Qf3 {[%clk 0:01:35.7]} 27... Qxa5 {[%clk
0:01:15.9]} 28. Nb7 {[%clk 0:01:30]} 28... Qg5+ {[%clk 0:01:15.1]} 29. Qg3
{[%clk 0:01:27.2]} 29... Qd5+ {[%clk 0:01:11.6]} 30. Qf3 {[%clk 0:01:26.7]}
30... Qxf3+ {[%clk 0:01:10.4]} 31. Kxf3 {[%clk 0:01:26.9]} 31... Rb8 {[%clk
0:01:08.1]} 32. Nc5 {[%clk 0:01:26.2]} 32... Rfd8 {[%clk 0:01:04.1]} 33. Ke2
{[%clk 0:01:20.3]} 33... Nc6 {[%clk 0:01:03.6]} 34. Rg1 {[%clk 0:01:18.9]} 34...
e5 {[%clk 0:01:00.9]} 35. Bb5 {[%clk 0:01:13.8]} 35... Rb6 {[%clk 0:00:42.3]}
36. dxe5 {[%clk 0:01:02.7]} 36... Nxe5 {[%clk 0:00:39.7]} 37. Rgd1 {[%clk
0:01:01.7]} 37... Rbd6 {[%clk 0:00:36.8]} 38. Rxd6 {[%clk 0:00:32.2]} 38... Rxd6
{[%clk 0:00:37.7]} 39. Rd1 {[%clk 0:00:30.5]} 39... Rxd1 {[%clk 0:00:29.1]} 40.
Kxd1 {[%clk 0:00:31.4]} 40... Kf8 {[%clk 0:00:26.7]} 41. a5 {[%clk 0:00:29.4]}
41... Nd5 {[%clk 0:00:20.4]} 42. a6 {[%clk 0:00:28.1]} 42... Nc7 {[%clk
0:00:20.6]} 43. a7 {[%clk 0:00:28]} 43... Ke7 {[%clk 0:00:19.3]} 44. f4 {[%clk
0:00:22.6]} 44... Ng4 {[%clk 0:00:18.5]} 45. Ke2 {[%clk 0:00:19.7]} 45... Nf6
{[%clk 0:00:18.1]} 46. Bc6 {[%clk 0:00:19.5]} 46... Kd6 {[%clk 0:00:17.2]} 47.
a8=Q {[%clk 0:00:17.5]} 47... Nxa8 {[%clk 0:00:17.3]} 48. Bxa8 {[%clk
0:00:18.4]} 48... Kxc5 {[%clk 0:00:17.8]} 49. Kd3 {[%clk 0:00:19.3]} 49... Ng4
{[%clk 0:00:17.2]} 50. h4 {[%clk 0:00:18.8]} 50... h5 {[%clk 0:00:15.4]} 51. Bf3
{[%clk 0:00:18]} 51... g6 {[%clk 0:00:15]} 52. e4 {[%clk 0:00:18.2]} 52... Nf6
{[%clk 0:00:13.3]} 53. Bg2 {[%clk 0:00:16.8]} 53... Ng8 {[%clk 0:00:12.9]} 54.
Bf3 {[%clk 0:00:15.9]} 54... Ne7 {[%clk 0:00:13.3]} 55. e5 {[%clk 0:00:16.2]}
55... Nf5 {[%clk 0:00:13]} 56. Be4 {[%clk 0:00:16]} 56... Nxh4 {[%clk 0:00:13]}
0-1